fUST/lending_fUST_20240608
["ID","MTS","AMOUNT","RATE_DAILY","PERIOD"]
[328830728,1717854640920,-500.0,0.00016438,2]
[328830729,1717854640930,-500.0,0.00016438,2]
[328830730,1717854640940,-500.0,0.00016438,2]
[328830731,1717854640950,-500.0,0.00016438,2]
[328830732,1717854640960,-1497.65,0.00016438,2]
[328830733,1717854640971,-263.56476424,0.00016438,2]
[328830785,1717854644960,-236.43523576,0.00016438,2]
[328830786,1717854644971,-500.0,0.00016438,2]
[328830787,1717854644980,-1719.39,0.00016438,2]
[328830788,1717854644989,-500.0,0.00016438,2]
[328830789,1717854645001,-960.59,0.00016438,2]
[328830790,1717854645010,-500.0,0.00016438,2]
[328830791,1717854645020,-500.0,0.00016438,2]
[328830793,1717854645030,-500.0,0.00016438,2]
[328830794,1717854645040,-500.0,0.00016438,2]
[328830795,1717854645051,-500.0,0.00016438,2]
[328830796,1717854645061,-500.0,0.00016438,2]
[328830797,1717854645071,-500.0,0.00016438,2]
[328830798,1717854645081,-500.0,0.00016438,2]
[328830799,1717854645092,-506.86,0.00016438,2]
[328830800,1717854645102,-266.80148003,0.00016438,2]
[328830801,1717854645112,-500.0,0.00016438,2]
[328830802,1717854645122,-1526.07,0.00016438,2]
[328830803,1717854645131,-627.99,0.00016438,2]
[328830804,1717854645141,-500.0,0.00016438,2]
[328830805,1717854645151,-500.0,0.00016438,2]
[328830806,1717854645160,-500.0,0.00016438,2]
[328830807,1717854645171,-909.43,0.00016438,2]
[328830808,1717854645181,-1082.98,0.00016438,2]
[328830809,1717854645191,-500.0,0.00016438,2]
[328830810,1717854645201,-329.86913548,0.00016438,2]
[328830811,1717854645210,-500.0,0.00016438,2]
[328830812,1717854645220,-500.0,0.00016438,2]
[328830813,1717854645230,-1578.47,0.00016438,2]
[328830814,1717854645239,-500.0,0.00016438,2]
[328830815,1717854645251,-500.0,0.00016438,2]
[328830816,1717854645261,-500.0,0.00016438,2]
[328830817,1717854645271,-500.0,0.00016438,2]
[328830818,1717854645280,-500.0,0.00016438,2]
[328830819,1717854645290,-500.0,0.00016438,2]
[328830820,1717854645300,-500.0,0.00016438,2]
[328830821,1717854645310,-500.0,0.00016438,2]
[328830822,1717854645320,-500.0,0.00016438,2]
[328830823,1717854645330,-500.0,0.00016438,2]
[328830824,1717854645340,-500.0,0.00016438,2]
[328830825,1717854645349,-500.0,0.00016438,2]
[328830826,1717854645359,-500.0,0.00016438,2]
[328830827,1717854645368,-500.0,0.00016438,2]
[328830828,1717854645378,-559.31,0.00016438,2]
[328830829,1717854645387,-1332.17,0.00016438,2]
[328830830,1717854645397,-864.5,0.00016438,2]
[328830831,1717854645407,-501.0544169,0.00016438,2]
[328830832,1717854645416,-612.15,0.00016438,2]
[328830833,1717854645426,-500.0,0.00016438,2]
[328830834,1717854645436,-839.48,0.00016438,2]
[328830835,1717854645445,-500.0,0.00016438,2]
[328830836,1717854645455,-500.0,0.00016438,2]
[328830837,1717854645465,-500.0,0.00016438,2]
[328830838,1717854645475,-500.0,0.00016438,2]
[328830839,1717854645486,-500.0,0.00016438,2]
[328830840,1717854645496,-594.93,0.00016438,2]
[328830841,1717854645506,-500.0,0.00016438,2]
[328830842,1717854645515,-2251.32,0.00016438,2]
[328830843,1717854645525,-500.0,0.00016438,2]
[328830844,1717854645536,-646.7420772,0.00016438,2]
[328830845,1717854645546,-500.0,0.00016438,2]
[328830846,1717854645561,-500.0,0.00016438,2]
[328830847,1717854645570,-500.0,0.00016438,2]
[328830848,1717854645580,-500.0,0.00016438,2]
[328830849,1717854645591,-515.72,0.00016438,2]
[328830850,1717854645600,-500.0,0.00016438,2]
[328830851,1717854645610,-500.0,0.00016438,2]
[328830852,1717854645620,-500.0,0.00016438,2]
[328830853,1717854645630,-500.0,0.00016438,2]
[328830854,1717854645640,-500.0,0.00016438,2]
[328830855,1717854645650,-1035.15,0.00016438,2]
[328830856,1717854645660,-500.0,0.00016438,2]
[328830857,1717854645670,-500.0,0.00016438,2]
[328830858,1717854645679,-500.0,0.00016438,2]
[328830859,1717854645689,-500.0,0.00016438,2]
[328830860,1717854645699,-1691.13,0.00016438,2]
[328830861,1717854645709,-784.31,0.00016438,2]
[328830862,1717854645719,-566.11,0.00016438,2]
[328830863,1717854645729,-260.89556566,0.00016438,2]
[328830864,1717854645738,-523.20442661,0.00016438,2]
[328830865,1717854645749,-346.3555976,0.00016438,2]
[328830866,1717854645764,-568.9944024,0.00016438,2]
[328830867,1717854645773,-500.0,0.00016438,2]
[328830868,1717854645783,-500.0,0.00016438,2]
[328830869,1717854645793,-960.35988296,0.00016438,2]
[328830897,1717854647687,-1973.63,0.00016438,2]
[328830898,1717854668876,528.0,0.00010959,2]
[328830899,1717854692764,2309.68675768,0.00016712,7]
[328830900,1717854756035,211.23648544,0.00016712,7]
[328830901,1717854813363,211.23648543,0.00016712,7]
[328830907,1717855505557,154.98450155,9.999e-05,2]
[328830961,1717855833333,-202.20866433,0.00014572,2]
[328830962,1717855833343,-181.59116487,0.00014671,2]
[328830963,1717855833355,-9726.81938963,0.00014671,2]
[328830964,1717855833365,-164.59629886,0.00015442,2]
[328830965,1717855833376,-181.67894173,0.00015442,2]
[328830966,1717855833386,-1178.11855971,0.00015442,2]
[328830967,1717855833395,-1903.86188157,0.00015442,2]
[328830968,1717855833405,-553.4320292,0.00015442,2]
[328830969,1717855833415,-199.07804068,0.00015442,2]
[328830970,1717855833425,-201.57402511,0.00015442,2]
[328830971,1717855833434,-593.02799574,0.00015443,2]
[328830972,1717855833444,-27363.36668338,0.00015444,2]
[328831015,1717855840042,-1083.92325738,0.00015444,2]
[328831016,1717855840058,-1268.48162346,0.00015444,2]
[328831017,1717855840070,-4110.71215918,0.00015444,2]
[328831080,1717855845125,-5235.67939957,0.00015444,2]
[328831082,1717855845135,-342.33983586,0.0001619,2]
[328831084,1717855845146,-7318.47452839,0.0001639,2]
[328831086,1717855845155,-4237.72657179,0.00016393,2]
[328831088,1717855845166,-1824.42305811,0.00016436,2]
[328831090,1717855845176,-190.34144755,0.00016436,2]
[328831092,1717855845186,-500.0,0.00016438,2]
[328831094,1717855845196,-500.0,0.00016438,2]
[328831096,1717855845206,-500.0,0.00016438,2]
[328831098,1717855845216,-500.0,0.00016438,2]
[328831100,1717855845226,-500.0,0.00016438,2]
[328831102,1717855845236,-500.0,0.00016438,2]
[328831104,1717855845247,-1015.43,0.00016438,2]
[328831106,1717855845257,-605.36013203,0.00016438,2]
[328831108,1717855845267,-568.09,0.00016438,2]
[328831110,1717855845278,-561.44,0.00016438,2]
[328831113,1717855845288,-625.903157,0.00016438,2]
[328831115,1717855845298,-500.0,0.00016438,2]
[328831117,1717855845310,-1017.89,0.00016438,4]
[328831119,1717855845320,-500.0,0.00016438,2]
[328831121,1717855845332,-500.0,0.00016438,2]
[328831123,1717855845342,-500.0,0.00016438,2]
[328831125,1717855845352,-500.0,0.00016438,2]
[328831127,1717855845361,-500.0,0.00016438,2]
[328831129,1717855845371,-500.0,0.00016438,2]
[328831131,1717855845381,-500.0,0.00016438,2]
[328831133,1717855845390,-500.0,0.00016438,2]
[328831135,1717855845401,-500.0,0.00016438,2]
[328831137,1717855845411,-500.0,0.00016438,2]
[328831139,1717855845420,-500.0,0.00016438,2]
[328831141,1717855845430,-500.0,0.00016438,2]
[328831143,1717855845441,-500.0,0.00016438,2]
[328831145,1717855845450,-500.0,0.00016438,2]
[328831147,1717855845461,-500.0,0.00016438,2]
[328831149,1717855845471,-500.0,0.00016438,2]
[328831151,1717855845481,-1462.49,0.00016438,2]
[328831152,1717855845491,-433.46261431,0.00016438,2]
[328831154,1717855845500,-315.44711033,0.00016438,2]
[328831156,1717855845510,-586.16811941,0.00016438,2]
[328831157,1717855845520,-500.0,0.00016438,2]
[328831158,1717855845529,-500.0,0.00016438,2]
[328831159,1717855845540,-500.0,0.00016438,2]
[328831160,1717855845549,-500.0,0.00016438,2]
[328831161,1717855845561,-500.0,0.00016438,2]
[328831162,1717855845570,-500.0,0.00016438,2]
[328831163,1717855845580,-500.0,0.00016438,2]
[328831164,1717855845589,-500.0,0.00016438,2]
[328831165,1717855845598,-500.0,0.00016438,2]
[328831166,1717855845608,-244.56921381,0.00016438,2]
[328831167,1717855845618,-570.14,0.00016438,2]
[328831168,1717855845628,-1790.87,0.00016438,2]
[328831169,1717855845639,-500.0,0.00016438,2]
[328831170,1717855845649,-586.65,0.00016438,2]
[328831171,1717855845659,-500.0,0.00016438,2]
[328831172,1717855845669,-500.0,0.00016438,2]
[328831173,1717855845678,-500.0,0.00016438,2]
[328831174,1717855845688,-500.0,0.00016438,2]
[328831175,1717855845698,-500.0,0.00016438,2]
[328831176,1717855845709,-500.0,0.00016438,2]
[328831177,1717855845719,-654.96,0.00016438,2]
[328831178,1717855845728,-500.0,0.00016438,2]
[328831179,1717855845739,-500.0,0.00016438,2]
[328831180,1717855845748,-500.0,0.00016438,2]
[328831181,1717855845758,-500.0,0.00016438,2]
[328831182,1717855845767,-500.0,0.00016438,2]
[328831183,1717855845777,-500.0,0.00016438,2]
[328831184,1717855845786,-500.0,0.00016438,2]
[328831185,1717855845916,-500.0,0.00016438,2]
[328831186,1717855845926,-500.0,0.00016438,2]
[328831187,1717855845936,-500.0,0.00016438,2]
[328831188,1717855845946,-500.0,0.00016438,2]
[328831189,1717855845956,-500.0,0.00016438,2]
[328831190,1717855845970,-641.99570024,0.00016438,2]
[328831191,1717855845980,-1480.04,0.00016438,2]
[328831192,1717855845990,-500.0,0.00016438,2]
[328831193,1717855846000,-500.0,0.00016438,2]
[328831194,1717855846011,-500.0,0.00016438,2]
[328831195,1717855846021,-572.91966433,0.00016438,2]
[328831196,1717855846031,-500.0,0.00016438,2]
[328831197,1717855846041,-500.0,0.00016438,2]
[328831198,1717855846053,-500.0,0.00016438,2]
[328831199,1717855846066,-877.21,0.00016438,2]
[328831200,1717855846075,-500.0,0.00016438,2]
[328831201,1717855846085,-500.0,0.00016438,2]
[328831202,1717855846096,-500.0,0.00016438,2]
[328831203,1717855846106,-619.8,0.00016438,2]
[328831204,1717855846116,-500.0,0.00016438,2]
[328831205,1717855846126,-500.0,0.00016438,2]
[328831206,1717855846136,-500.0,0.00016438,2]
[328831207,1717855846146,-500.0,0.00016438,2]
[328831208,1717855846156,-975.62,0.00016438,2]
[328831209,1717855846166,-500.0,0.00016438,2]
[328831210,1717855846176,-660.83,0.00016438,2]
[328831211,1717855846186,-500.0,0.00016438,2]
[328831212,1717855846196,-500.0,0.00016438,2]
[328831213,1717855846206,-500.96413745,0.00016438,2]
[328831214,1717855846216,-500.0,0.00016438,2]
[328831215,1717855846226,-500.0,0.00016438,2]
[328831216,1717855846236,-537.35,0.00016438,2]
[328831217,1717855846247,-500.0,0.00016438,2]
[328831218,1717855846257,-500.0,0.00016438,2]
[328831219,1717855846267,-500.0,0.00016438,2]
[328831220,1717855846278,-1571.4,0.00016438,2]
[328831221,1717855846289,-500.0,0.00016438,2]
[328831222,1717855846299,-500.0,0.00016438,2]
[328831223,1717855846309,-500.0,0.00016438,2]
[328831224,1717855846320,-920.56,0.00016438,2]
[328831225,1717855846329,-500.0,0.00016438,2]
[328831226,1717855846339,-500.0,0.00016438,2]
[328831227,1717855846349,-732.6,0.00016438,2]
[328831228,1717855846359,-500.0,0.00016438,2]
[328831229,1717855846369,-510.18050523,0.00016438,2]
[328831230,1717855846378,-500.0,0.00016438,2]
[328831231,1717855846388,-500.0,0.00016438,2]
[328831232,1717855846399,-500.0,0.00016438,2]
[328831233,1717855846409,-500.0,0.00016438,2]
[328831234,1717855846419,-375.15954391,0.00016438,2]
[328831235,1717855846429,-342.96286839,0.00016438,2]
[328831236,1717855846439,-1098.5,0.00016438,2]
[328831237,1717855846449,-500.0,0.00016438,2]
[328831238,1717855846460,-500.0,0.00016438,2]
[328831239,1717855846470,-505.45117784,0.00016438,2]
[328831240,1717855846479,-500.0,0.00016438,2]
[328831241,1717855846489,-500.0,0.00016438,2]
[328831242,1717855846500,-500.0,0.00016438,2]
[328831243,1717855846510,-500.0,0.00016438,2]
[328831244,1717855846520,-500.0,0.00016438,2]
[328831245,1717855846530,-601.82,0.00016438,2]
[328831246,1717855846540,-500.0,0.00016438,2]
[328831247,1717855846550,-1687.64,0.00016438,2]
[328831248,1717855846560,-500.0,0.00016438,2]
[328831249,1717855846570,-500.0,0.00016438,2]
[328831250,1717855846580,-208.4488062,0.00016438,2]
[328831251,1717855846590,-432.09445292,0.00016438,2]
[328831252,1717855846600,-500.0,0.00016438,2]
[328831253,1717855846611,-500.0,0.00016438,2]
[328831254,1717855846620,-500.0,0.00016438,2]
[328831255,1717855846630,-551.33490613,0.00016438,2]
[328831256,1717855846640,-500.0,0.00016438,2]
[328831257,1717855846652,-500.0,0.00016438,2]
[328831258,1717855846662,-500.0,0.00016438,2]
[328831259,1717855846672,-500.0,0.00016438,2]
[328831260,1717855846682,-500.0,0.00016438,2]
[328831261,1717855846692,-500.0,0.00016438,2]
[328831262,1717855846701,-500.0,0.00016438,2]
[328831263,1717855846712,-502.27029095,0.00016438,2]
[328831264,1717855846721,-871.53,0.00016438,2]
[328831265,1717855846731,-500.0,0.00016438,2]
[328831266,1717855846741,-500.0,0.00016438,2]
[328831267,1717855846751,-500.0,0.00016438,2]
[328831268,1717855846761,-1512.7,0.00016438,2]
[328831269,1717855846771,-528.82,0.00016438,2]
[328831270,1717855846781,-500.0,0.00016438,2]
[328831271,1717855846791,-500.0,0.00016438,2]
[328831272,1717855846801,-500.0,0.00016438,2]
[328831273,1717855846811,-500.0,0.00016438,2]
[328831274,1717855846820,-500.0,0.00016438,2]
[328831275,1717855846830,-500.0,0.00016438,2]
[328831276,1717855846840,-500.91,0.00016438,2]
[328831277,1717855846850,-500.0,0.00016438,2]
[328831278,1717855846860,-828.48,0.00016438,2]
[328831279,1717855846870,-1556.87,0.00016438,2]
[328831280,1717855846880,-536.0,0.00016438,2]
[328831281,1717855846890,-1276.66,0.00016438,2]
[328831282,1717855846899,-500.0,0.00016438,2]
[328831283,1717855846909,-500.0,0.00016438,2]
[328831284,1717855846919,-804.5,0.00016438,2]
[328831285,1717855846929,-500.0,0.00016438,2]
[328831286,1717855846940,-500.0,0.00016438,2]
[328831287,1717855846949,-500.0,0.00016438,2]
[328831288,1717855846960,-577.35336352,0.00016438,2]
[328831289,1717855846975,-500.0,0.00016438,2]
[328831290,1717855846985,-500.0,0.00016438,2]
[328831291,1717855846995,-500.0,0.00016438,2]
[328831292,1717855847006,-500.0,0.00016438,2]
[328831293,1717855847017,-500.0,0.00016438,2]
[328831294,1717855847027,-2157.52,0.00016438,2]
[328831295,1717855847037,-500.0,0.00016438,2]
[328831296,1717855847049,-500.0,0.00016438,2]
[328831297,1717855847060,-500.0,0.00016438,2]
[328831298,1717855847070,-500.0,0.00016438,2]
[328831299,1717855847081,-500.0,0.00016438,2]
[328831300,1717855847091,-500.0,0.00016438,2]
[328831301,1717855847102,-500.0,0.00016438,2]
[328831302,1717855847112,-500.0,0.00016438,2]
[328831303,1717855847122,-500.0,0.00016438,2]
[328831304,1717855847132,-500.0,0.00016438,2]
[328831306,1717855847143,-992.02,0.00016438,2]
[328831308,1717855847152,-500.0,0.00016438,2]
[328831309,1717855847163,-500.0,0.00016438,2]
[328831311,1717855847173,-500.0,0.00016438,2]
[328831314,1717855847182,-500.0,0.00016438,2]
[328831317,1717855847192,-503.74802448,0.00016438,2]
[328831319,1717855847202,-542.52,0.00016438,2]
[328831322,1717855847212,-751.63,0.00016438,2]
[328831324,1717855847222,-558.38,0.00016438,2]
[328831326,1717855847232,-500.0,0.00016438,2]
[328831328,1717855847242,-1485.0,0.00016438,2]
[328831330,1717855847251,-500.0,0.00016438,2]
[328831332,1717855847261,-500.0,0.00016438,2]
[328831334,1717855847270,-516.33,0.00016438,2]
[328831336,1717855847280,-500.0,0.00016438,2]
[328831338,1717855847290,-500.0,0.00016438,2]
[328831340,1717855847300,-500.0,0.00016438,2]
[328831342,1717855847310,-500.0,0.00016438,2]
[328831344,1717855847320,-500.0,0.00016438,2]
[328831346,1717855847329,-500.0,0.00016438,2]
[328831348,1717855847341,-500.0,0.00016438,2]
[328831350,1717855847350,-431.37930751,0.00016438,2]
[328831352,1717855847360,-500.0,0.00016438,2]
[328831354,1717855847369,-500.0,0.00016438,2]
[328831356,1717855847379,-500.0,0.00016438,2]
[328831358,1717855847389,-1620.66,0.00016438,2]
[328831360,1717855847399,-500.0,0.00016438,2]
[328831362,1717855847408,-748.59,0.00016438,2]
[328831364,1717855847418,-2740.38,0.00016438,2]
[328831366,1717855847428,-500.0,0.00016438,2]
[328831368,1717855847438,-500.0,0.00016438,2]
[328831370,1717855847448,-2769.46,0.00016438,2]
[328831372,1717855847457,-545.82,0.00016438,2]
[328831374,1717855847467,-500.0,0.00016438,2]
[328831376,1717855847477,-500.0,0.00016438,2]
[328831378,1717855847487,-1406.26,0.00016438,2]
[328831379,1717855847497,-1188.05,0.00016438,2]
[328831381,1717855847507,-500.0,0.00016438,2]
[328831383,1717855847517,-1936.86,0.00016438,2]
[328831385,1717855847527,-500.0,0.00016438,2]
[328831387,1717855847537,-500.0,0.00016438,2]
[328831389,1717855847547,-500.0,0.00016438,2]
[328831391,1717855847557,-3481.6,0.00016438,2]
[328831393,1717855847568,-830.79,0.00016438,2]
[328831395,1717855847577,-500.0,0.00016438,2]
[328831396,1717855847589,-500.0,0.00016438,2]
[328831397,1717855847598,-500.0,0.00016438,2]
[328831398,1717855847609,-500.0,0.00016438,2]
[328831399,1717855847618,-500.0,0.00016438,2]
[328831400,1717855847628,-500.0,0.00016438,2]
[328831401,1717855847638,-4055.43,0.00016438,2]
[328831402,1717855847657,-535.13,0.00016438,2]
[328831403,1717855847670,-500.0,0.00016438,2]
[328831404,1717855847682,-500.0,0.00016438,2]
[328831405,1717855847693,-500.0,0.00016438,2]
[328831406,1717855847703,-1711.92,0.00016438,2]
[328831407,1717855847714,-500.0,0.00016438,2]
[328831408,1717855847724,-500.0,0.00016438,2]
[328831409,1717855847734,-7839.29,0.00016438,2]
[328831410,1717855847744,-500.0,0.00016438,2]
[328831411,1717855847754,-500.0,0.00016438,2]
[328831412,1717855847764,-4240.14,0.00016438,2]
[328831413,1717855847774,-500.0,0.00016438,2]
[328831414,1717855847785,-500.0,0.00016438,2]
[328831415,1717855847795,-777.81,0.00016438,2]
[328831416,1717855847805,-500.0,0.00016438,2]
[328831417,1717855847816,-500.0,0.00016438,2]
[328831418,1717855847826,-656.61,0.00016438,2]
[328831419,1717855847836,-837.81,0.00016438,2]
[328831420,1717855847846,-2125.44,0.00016438,2]
[328831421,1717855847857,-500.0,0.00016438,2]
[328831422,1717855847867,-858.72,0.00016438,2]
[328831423,1717855847878,-557.3,0.00016438,2]
[328831424,1717855847888,-630.92,0.00016438,2]
[328831425,1717855847898,-500.0,0.00016438,2]
[328831426,1717855847909,-500.0,0.00016438,2]
[328831427,1717855847919,-500.0,0.00016438,2]
[328831428,1717855847929,-500.0,0.00016438,2]
[328831429,1717855847939,-1581.68,0.00016438,2]
[328831431,1717855847949,-389.97644604,0.00016438,2]
[328831432,1717855847960,-500.0,0.00016438,2]
[328831433,1717855847974,-2009.83,0.00016438,2]
[328831434,1717855847986,-500.0,0.00016438,2]
[328831435,1717855847997,-719.8,0.00016438,2]
[328831436,1717855848008,-500.0,0.00016438,2]
[328831440,1717855848148,-500.0,0.00016438,2]
[328831442,1717855848159,-5176.99,0.00016438,2]
[328831444,1717855848171,-639.4,0.00016438,2]
[328831446,1717855848182,-9141.08,0.00016438,2]
[328831448,1717855848193,-9689.53,0.00016438,2]
[328831449,1717855848205,-1831.62,0.00016438,2]
[328831450,1717855848215,-500.0,0.00016438,2]
[328831451,1717855848225,-500.0,0.00016438,2]
[328831452,1717855848236,-2465.76,0.00016438,2]
[328831453,1717855848246,-500.0,0.00016438,2]
[328831454,1717855848256,-5196.1,0.00016438,2]
[328831455,1717855848266,-784.21,0.00016438,2]
[328831456,1717855848275,-500.0,0.00016438,2]
[328831457,1717855848286,-2008.87,0.00016438,2]
[328831458,1717855848296,-1321.87,0.00016438,2]
[328831459,1717855848306,-500.0,0.00016438,2]
[328831460,1717855848316,-731.55,0.00016438,2]
[328831461,1717855848326,-500.0,0.00016438,2]
[328831462,1717855848335,-500.0,0.00016438,2]
[328831463,1717855848345,-500.48,0.00016438,2]
[328831464,1717855848354,-500.0,0.00016438,2]
[328831465,1717855848364,-500.0,0.00016438,2]
[328831466,1717855848373,-317.7,0.00016438,2]
[328831467,1717855848382,-500.0,0.00016438,2]
[328831468,1717855848392,-913.11,0.00016438,2]
[328831469,1717855848401,-882.37,0.00016438,2]
[328831470,1717855848410,-500.0,0.00016438,2]
[328831471,1717855848420,-500.0,0.00016438,2]
[328831472,1717855848429,-368.12646034,0.00016438,2]
[328831473,1717855848440,-529.22,0.00016438,2]
[328831474,1717855848449,-1072.16,0.00016438,2]
[328831475,1717855848459,-500.0,0.00016438,2]
[328831476,1717855848469,-2705.64,0.00016438,2]
[328831477,1717855848479,-500.0,0.00016438,2]
[328831478,1717855848489,-500.0,0.00016438,2]
[328831479,1717855848499,-696.07,0.00016438,2]
[328831480,1717855848508,-500.0,0.00016438,2]
[328831481,1717855848518,-568.5,0.00016438,2]
[328831482,1717855848528,-18133.57,0.00016438,2]
[328831483,1717855848538,-300.0,0.00016438,2]
[328831484,1717855848548,-499.0,0.00016471,2]
[328831485,1717855848558,-150.0,0.00016471,2]
[328831486,1717855848569,-275.55259809,0.000165,2]
[328831487,1717855848579,-307.1122535,0.000165,2]
[328831488,1717855848589,-169.324002,0.0001652,2]
[328831489,1717855848598,-169.324001,0.0001652,2]
[328831490,1717855848608,-229.0316217,0.000166,2]
[328831491,1717855848617,-795.59980651,0.00016634,2]
[328831492,1717855848627,-317.7,0.00016687,2]
[328831493,1717855848638,-265.2732194,0.000167,2]
[328831494,1717855848648,-593.61382904,0.00016712,2]
[328831495,1717855848658,-500.0,0.00016712,2]
[328831496,1717855848667,-500.0,0.00016712,2]
[328831497,1717855848677,-500.0,0.00016712,2]
[328831498,1717855848687,-1015.43,0.00016712,2]
[328831499,1717855848697,-568.09,0.00016712,2]
[328831500,1717855848707,-561.44,0.00016712,2]
[328831501,1717855848721,-500.0,0.00016712,2]
[328831502,1717855848732,-1017.89,0.00016712,4]
[328831503,1717855848742,-500.0,0.00016712,2]
[328831504,1717855848752,-519.10963546,0.00016712,2]
[328831505,1717855848761,-500.0,0.00016712,2]
[328831506,1717855848772,-500.0,0.00016712,2]
[328831507,1717855848783,-500.0,0.00016712,2]
[328831508,1717855848793,-500.0,0.00016712,2]
[328831509,1717855848803,-500.0,0.00016712,2]
[328831510,1717855848815,-1462.49,0.00016712,2]
[328831511,1717855848824,-500.0,0.00016712,2]
[328831512,1717855848834,-265.38523263,0.00016712,2]
[328831513,1717855848844,-500.0,0.00016712,2]
[328831514,1717855848854,-500.0,0.00016712,2]
[328831515,1717855848863,-500.0,0.00016712,2]
[328831516,1717855848873,-500.0,0.00016712,2]
[328831517,1717855848883,-500.0,0.00016712,2]
[328831518,1717855848893,-500.0,0.00016712,2]
[328831519,1717855848904,-570.14,0.00016712,2]
[328831520,1717855848914,-1790.87,0.00016712,2]
[328831521,1717855848923,-500.0,0.00016712,2]
[328831522,1717855848933,-586.65,0.00016712,2]
[328831523,1717855848943,-500.0,0.00016712,2]
[328831524,1717855848953,-500.0,0.00016712,2]
[328831525,1717855848964,-500.0,0.00016712,2]
[328831526,1717855848978,-500.0,0.00016712,2]
[328831527,1717855848988,-654.96,0.00016712,2]
[328831528,1717855848998,-500.0,0.00016712,2]
[328831529,1717855849007,-199.37533274,0.00016712,2]
[328831530,1717855849017,-500.0,0.00016712,2]
[328831531,1717855849027,-625.63159404,0.00016712,2]
[328831532,1717855849037,-1480.04,0.00016712,2]
[328831533,1717855849048,-500.0,0.00016712,2]
[328831534,1717855849057,-500.0,0.00016712,2]
[328831535,1717855849067,-877.21,0.00016712,2]
[328831536,1717855849076,-281.63022182,0.00016712,2]
[328831537,1717855849085,-619.8,0.00016712,2]
[328831538,1717855849094,-500.0,0.00016712,2]
[328831539,1717855849105,-500.0,0.00016712,2]
[328831540,1717855849115,-542.53558029,0.00016712,2]
[328831541,1717855849124,-975.62,0.00016712,2]
[328831542,1717855849134,-660.83,0.00016712,2]
[328831543,1717855849144,-500.0,0.00016712,2]
[328831544,1717855849154,-500.0,0.00016712,2]
[328831545,1717855849163,-537.35,0.00016712,2]
[328831546,1717855849174,-500.0,0.00016712,2]
[328831547,1717855849183,-1571.4,0.00016712,2]
[328831548,1717855849193,-500.0,0.00016712,2]
[328831549,1717855849203,-256.69238887,0.00016712,2]
[328831550,1717855849215,-500.0,0.00016712,2]
[328831551,1717855849225,-920.56,0.00016712,2]
[328831552,1717855849234,-732.6,0.00016712,2]
[328831553,1717855849243,-500.0,0.00016712,2]
[328831554,1717855849253,-500.0,0.00016712,2]
[328831555,1717855849262,-500.0,0.00016712,2]
[328831556,1717855849273,-500.0,0.00016712,2]
[328831557,1717855849282,-500.0,0.00016712,2]
[328831558,1717855849292,-1098.5,0.00016712,2]
[328831559,1717855849302,-500.0,0.00016712,2]
[328831560,1717855849311,-500.0,0.00016712,2]